Cogmind - Beta 13 @@@ ROGUE MODE // 2024.03.31 @ 18:17:29 Player: Benny Result: Destroyed by G-34 Mercenary with Small Laser Performance ------------- Evolutions (1) 500 Regions Visited (3) 600 Robots Destroyed (53) 265 Value Destroyed (1249) 1249 Prototype IDs (4) 80 Alien Tech Used (0) 0 Bonus (0) 0 TOTAL SCORE: 2694 Bonus ------- None Cogmind --------- Core Integrity 0/400 Matter 299/300 Energy 264/265 System Corruption 0% Temperature Cool (6) Movement Rolling (90) Location -9/Materials Parts ------- > --- POWER (1) -------- Improved Ion Engine > --- PROPULSION (3) --- Aluminum Leg Armored Wheel Flight Unit > --- UTILITY (3) ------ Signal Interpreter Terrain Scan Processor Seismic Detector > --- WEAPON (2) ------- Light Assault Rifle Hammer > --- INVENTORY (5) ---- Improved Treads Flight Unit Spread Laser Light Assault Rifle Datajack Peak State ------------ > --- POWER ------------ Light Ion Engine > --- PROPULSION ------- Wheel Armored Wheel VTOL Module > --- UTILITY ---------- Signal Interpreter Improved Terrain Scanner Terrain Scan Processor > --- WEAPON ----------- Light Assault Rifle Light Assault Rifle > --- INVENTORY -------- Light Ion Engine Improved Ion Engine Light Assault Rifle Datajack Hammer [Rating: 14] Favorites ----------- Power Ion Engine Engine Ion Engine Propulsion Wheel Treads Light Treads Leg Aluminum Leg Wheel Wheel Hover Unit Improved Hover Unit Flight Unit Flight Unit Utility Improved Terrain Scanner Device Improved Terrain Scanner Storage Small Storage Unit Processor Terrain Scan Processor Weapon EM Pulse Gun Energy Gun EM Pulse Gun Ballistic Gun Light Assault Rifle Launcher Grenade Launcher Special Weapon Mining Laser Impact Weapon Hammer Special Melee Weapon Datajack Build | -11 -10 -10 -9 ------- Run | Yrd Mat Min Mat Slots Evolved 2 | . . . 2 Power . | . . . . Propulsion 1 | . . . 1 Utility 1 | . . . 1 Weapon . | . . . . Parts Attached 58 | 7 14 9 28 Power 8 | 1 1 . 6 Engine 8 | 1 1 . 6 Core . | . . . . Reactor . | . . . . Propulsion 16 | 2 2 1 11 Treads 1 | . . . 1 Leg 4 | 2 . . 2 Wheel 6 | . 2 1 3 Hover 1 | . . . 1 Flight 4 | . . . 4 Utility 8 | 2 1 2 3 Device 5 | 1 1 1 2 Storage 1 | 1 . . . Processor 2 | . . 1 1 Hackware . | . . . . Protection . | . . . . Artifact . | . . . . Weapon 26 | 2 10 6 8 Energy Gun 6 | 1 4 1 . Energy Cannon . | . . . . Ballistic Gun 12 | 1 3 2 6 Ballistic Cannon . | . . . . Launcher 5 | . 3 1 1 Special Weapon 1 | . . 1 . Impact Weapon 1 | . . . 1 Slashing Weapon . | . . . . Piercing Weapon . | . . . . Special Melee Weapon 1 | . . 1 . Unidentified Prototypes . | . . . . Corrupted Parts 1 | . . 1 . System Corruption 1 | . . 1 . Parts Lost 21 | . 3 1 17 Power 3 | . . . 3 Propulsion 9 | . . . 9 Utility 2 | . . . 2 Weapon 7 | . 3 1 3 Highest Loss Streak 6 | . 1 1 6 To Critical Strikes . | . . . . Average Slot Usage (%) 96 | . 97 99 92 Engine 12 | . 14 14 10 Leg 5 | . 12 . 6 Wheel 19 | . 15 28 11 Flight 3 | . . . 10 Device 12 | . 14 14 9 Storage 5 | . 14 2 . Processor 11 | . . 11 21 Energy Gun 8 | . 9 13 . Ballistic Gun 9 | . 10 4 15 Launcher 3 | . 6 2 . Impact Weapon 1 | . . . 3 Special Melee Weapon 2 | . . 6 . Naked Turns . | . . . . Heaviest Build 16 | 13 16 16 11 Greatest Support 26 | 20 26 26 26 Greatest Overweight (x) 1 | . . . 1 Average Overweight (x) . | . . . . Largest Inventory Capacity 8 | 8 8 8 5 Average Capacity 6 | 7 8 5 5 Most Carried 8 | 7 8 8 5 Average Carried 5 | 4 7 5 4 Final Capacity 8 | 8 8 5 5 Final Carried 8 | 7 8 4 5 Class Distribution -------------------- 72% | Mutant 27% | Scavenger-Mutant Dominant Class ---------------- Mutant | -10/Materials Mutant | -10/Mines Scavenger-Mutant | -9/Materials Resources | -11 -10 -10 -9 ----------- Run | Yrd Mat Min Mat Matter Collected 1082 | 270 206 193 413 Remotely . | . . . . Salvage Created 1431 | 97 441 301 592 Parts 102 | 9 35 21 37 Haulers Intercepted . | . . . . Recyclers Shooed 1 | . . . 1 Parts Field Recycled . | . . . . Retrieved Matter . | . . . . Parts Self-Destructed . | . . . . Prevented . | . . . . Kills | -11 -10 -10 -9 ------- Run | Yrd Mat Min Mat Combat Hostiles Destroyed 40 | . 13 10 17 Melee 5 | . . . 5 Guns 23 | . 6 6 11 AOE 12 | . 7 4 1 Classes Destroyed 8 | 1 6 1 . Worker 3 | . 1 . 2 Builder 2 | . 2 . . Tunneler 5 | 4 . 1 . Operator 1 | . 1 . . Watcher 2 | . 2 . . Swarmer 16 | . 3 6 7 Grunt 19 | . 10 2 7 Sentry 5 | . . 2 3 Best Kill Streak 6 | 2 5 3 6 Combat Bots Only 6 | . 3 3 6 Max Kills in Single Turn 2 | 1 2 2 1 Gunslinging . | . . . . Exploded 2 | . 2 2 1 Melee 1 | . . . 1 Uniques/NPCs Destroyed . | . . . . Combat | -11 -10 -10 -9 -------- Run | Yrd Mat Min Mat Hostile Shots Fired 262 | . 67 41 154 Missed 72 | . 20 15 37 Damage Taken 2318 | . 629 314 1375 Core 630 | . 138 88 404 Absorbed by Shields . | . . . . Core Remaining (%) 54 | 100 . 9 . Volleys Fired 163 | 9 54 29 71 Largest 2 | 1 2 2 2 Hottest 80 | 40 80 80 50 Shots Fired 253 | 9 82 41 121 Gun 239 | 9 73 38 119 Cannon . | . . . . Launcher 14 | . 9 3 2 Special . | . . . . Kinetic 146 | . 26 1 119 Thermal . | . . . . Explosive 14 | . 9 3 2 Electromagnetic 93 | 9 47 37 . Robot Hit Streak 11 | 9 7 11 9 Robot Miss Streak 3 | . 3 2 3 Penetration Max . | . . . . Secondary Targets . | . . . . Shots Hit Robots 165 | 9 44 33 79 Core Hits 80 | 4 29 16 31 Critical Kills 2 | . . . 2 Critical Parts Destroyed . | . . . . Critical Strikes 3 | . 1 . 2 Corrupt 1 | . 1 . . Smash 2 | . . . 2 Melee Attacks 39 | . . 6 33 Impact 33 | . . . 33 Slashing . | . . . . Piercing . | . . . . Sneak Attacks 8 | . . 6 2 Combat Hostiles . | . . . . Follow-up Attacks . | . . . . Damage Inflicted 2965 | 126 1327 567 945 Guns 1338 | 126 480 301 431 Cannons . | . . . . Explosions 1205 | . 847 266 92 Melee 422 | . . . 422 Ramming . | . . . . Kinetic 612 | . 181 . 431 Thermal 401 | . 320 81 . Explosive 804 | . 527 185 92 Electromagnetic 726 | 126 299 301 . Impact 422 | . . . 422 Slashing . | . . . . Piercing . | . . . . Highest Corruption 1 | . . 1 . Average Corruption 1 | . . 1 . Corruption Purged . | . . . . Corruption Blocked . | . . . . Effects 4 | . . 4 . Message Errors 1 | . . 1 . Matter Fused 2 | . . 2 . Energy Discharges 1 | . . 1 . Overload Shots . | . . . . Overflow Damage 168 | . 96 36 36 Projectiles . | . . . . Explosions 132 | . 96 36 . Melee 36 | . . . 36 Knockbacks 4 | . . . 4 Impact 4 | . . . 4 Kinetic . | . . . . Secondary . | . . . . Self-Inflicted Damage 169 | . 91 49 29 Shots 5 | . 3 1 1 Rammed . | . . . . Targets Rammed . | . . . . Kicked . | . . . . Crushed . | . . . . Highest Temperature 93 | . 64 93 10 Average Temperature 28 | . 28 43 3 Received Heat Transfer 855 | . 291 66 498 Siege Activations . | . . . . Robots Corrupted . | . . . . Combat Hostiles . | . . . . Parts Fried 3 | 2 . 1 . Impact Corruptions 3 | . . . 3 Robots Melted . | . . . . Combat Hostiles . | . . . . Parts Melted 1 | . . 1 . Heat Transferred 300 | . 200 100 . Parts Sabotaged . | . . . . Parts Stolen . | . . . . Parts Stripped . | . . . . Power Chain Reactions 3 | . 2 1 . Alert | -11 -10 -10 -9 ------- Run | Yrd Mat Min Mat Peak Influence 458 | 20 458 263 301 Initial 126 | . 13 126 37 Average 163 | 6 248 101 187 Maximum Alert Level 2 | . 2 1 1 Low Security (%) 57 | 100 36 76 45 Level 1 37 | . 45 23 54 Level 2 5 | . 18 . . Level 3 . | . . . . Level 4 . | . . . . Level 5 . | . . . . High Security . | . . . . Max Security . | . . . . Squads Dispatched 8 | . 4 . 4 Investigation 4 | . 3 . 1 Extermination . | . . . . Reinforcement 4 | . 1 . 3 Assault . | . . . . Garrison . | . . . . Intercept . | . . . . Searches Triggered . | . . . . Construction Impeded . | . . . . Haulers Reinforced . | . . . . Active Scanning Responses . | . . . . Cargo Convoy Interrupts . | . . . . Stealth | -11 -10 -10 -9 --------- Run | Yrd Mat Min Mat Distress Signals 2 | . 2 . . Communications Jammed . | . . . . Distress Signals . | . . . . Times Spotted 66 | . 25 11 30 Peak Tracking Total 7 | . 5 3 7 Tactical Retreats 13 | . 5 2 6 Traps | -11 -10 -10 -9 ------- Run | Yrd Mat Min Mat Traps Triggered 1 | . 1 . . Indirectly . | . . . . Trap Hack Attempts . | . . . . Triggered . | . . . . Disarmed . | . . . . Reprogrammed . | . . . . Reused . | . . . . Traps Extracted . | . . . . Installed . | . . . . Triggered . | . . . . Machines | -11 -10 -10 -9 ---------- Run | Yrd Mat Min Mat Machines Disabled 8 | . 6 1 1 Max in Single Turn 4 | . 4 1 1 Machines Repaired . | . . . . Machines Dismantled . | . . . . Machines Sabotaged . | . . . . Overloaded Fab Kills . | . . . . Hacking | -11 -10 -10 -9 --------- Run | Yrd Mat Min Mat Machines Accessed 15 | . 9 2 4 Terminals 13 | . 7 2 4 Fabricators . | . . . . Repair Stations . | . . . . Recycling Units 2 | . 2 . . Scanalyzers . | . . . . Garrison Access . | . . . . Total Hacks 47 | . 32 5 10 Successful 24 | . 16 2 6 Failed 23 | . 16 3 4 Catastrophic 4 | . 3 . 1 Database Lockouts . | . . . . Manual 3 | . 2 . 1 Terminals 41 | . 26 5 10 Fabricators . | . . . . Repair Stations . | . . . . Recycling Units 6 | . 6 . . Scanalyzers . | . . . . Garrison Access . | . . . . Terminal Hacks 22 | . 14 2 6 Record 1 | . . . 1 Robot Analysis 1 | . 1 . . Prototype ID Bank 3 | . 2 . 1 Alert Level 3 | . 3 . . Unreport Threat 1 | . . . 1 Locate Traps 2 | . 2 . . Maintenance Status 1 | . . . 1 Surveillance Status 1 | . 1 . . Patrol Status 1 | . 1 . . Investigation Status 1 | . 1 . . Registered Components 1 | . 1 . . Zone Layout 6 | . 2 2 2 Fabricator Hacks . | . . . . Repair Station Hacks . | . . . . Recycling Unit Hacks 1 | . 1 . . Retrieve Components 1 | . 1 . . Scanalyzer . | . . . . Garrison Access Hacks . | . . . . Unauthorized Hacks 1 | . 1 . . Terminals . | . . . . Fabricators . | . . . . Repair Stations . | . . . . Recycling Units 1 | . 1 . . Tunnel 1 | . 1 . . Scanalyzers . | . . . . Garrison Access . | . . . . Data Cores Recovered 1 | . 1 . . Used 1 | . 1 . . Hacking Detections 10 | . 6 1 3 Full Trace Events 4 | . 1 . 3 Feedback Events . | . . . . Feedback Blocked . | . . . . Robot Schematics Acquired . | . . . . Robots Built . | . . . . Authchips . | . . . . Time . | . . . . Total Robot Build Rating . | . . . . Part Schematics Acquired . | . . . . Parts Built . | . . . . Authchips . | . . . . Time . | . . . . Total Part Build Rating . | . . . . Parts Repaired . | . . . . Time . | . . . . Parts Recycled . | . . . . Recycled Matter . | . . . . Retrieved Matter . | . . . . Retrieved Components . | . . . . Parts Scanalyzed . | . . . . Part Schematics Acquired . | . . . . Parts Damaged . | . . . . Bothacking | -11 -10 -10 -9 ------------ Run | Yrd Mat Min Mat Used RIF Installer . | . . . . Robots Hacked 1 | . . 1 . Non-combat 1 | . . 1 . Combat . | . . . . Robot Hacks Applied 2 | . . 2 . parse_system 1 | . . 1 . no_distress 1 | . . 1 . Relay Couplers Released . | . . . . Fabnet Peak Effective % . | . . . . Robots Rewired . | . . . . Allies Hacked . | . . . . Hacks Repelled . | . . . . Allies | -11 -10 -10 -9 -------- Run | Yrd Mat Min Mat Total Allies . | . . . . Largest Group . | . . . . Highest-Rated Group . | . . . . Highest-Rated Ally . | . . . . Total Orders . | . . . . Ally Attacks . | . . . . Total Damage . | . . . . Kills . | . . . . Allies Corrupted . | . . . . Allies Melted . | . . . . Intel | -11 -10 -10 -9 ------- Run | Yrd Mat Min Mat Robot Analysis Total 1 | . 1 . . Derelict Logs Recovered 1 | . . 1 . Drone Launches . | . . . . Drone Recoveries . | . . . . Exploration | -11 -10 -10 -9 ------------- Run | Yrd Mat Min Mat Turns Passed 3453 | 151 959 1320 1023 Spaces Moved 2251 | 103 748 754 646 Core 11 | 11 . . . Treads 7 | . . . 7 Legs 327 | 92 229 . 6 Wheels 1795 | . 519 754 522 Hover . | . . . . Flight 111 | . . . 111 Fastest Speed 47 | 50 90 90 47 Average Speed 91 | 112 99 90 81 Slowest Speed 160 | 120 120 90 160 Overloaded Moves . | . . . . Propulsion Burnouts . | . . . . Robots Hopped 3 | . . . 3 Cave-ins Triggered . | . . . . Exploration Rate (%) 57 | 5 93 93 37 Regions Visited 3 Branch Regions 1 Pre-discovered Areas 2 | . 1 1 . Known Exits Taken . | . . . . Unknown Exits Taken 3 | 1 1 1 . Scrap Searched 1 | . . 1 . Spaces Dug 14 | . 8 . 6 Terrain Destroyed 115 | . 60 36 19 Melee 6 | . . . 6 Projectile . | . . . . AOE 109 | . 60 36 13 Terrain Rammed . | . . . . Walls Destroyed . | . . . . Machines Disabled . | . . . . Actions | -11 -10 -10 -9 --------- Run | Yrd Mat Min Mat Total 3333 | 125 882 1351 975 Wait 775 | . 48 543 184 Move 2242 | 102 747 753 640 Hop 3 | . . . 3 Pick Up 31 | 7 10 4 10 Fast Attach 22 | 7 2 1 12 Attach 15 | . 4 2 9 Detach 2 | . . 1 1 Swap 21 | . 8 6 7 Drop 20 | . 9 6 5 Fire 163 | 9 54 29 71 Melee 39 | . . 6 33 Ram . | . . . . Kick . | . . . . Crush . | . . . . Escape Stasis . | . . . . Rewire . | . . . . Trap . | . . . . Miscellaneous . | . . . . Route ------- -11/Scrapyard -10/Materials (discovered 5 exits: *Mat x3 / *Min x2) -10/Mines (discovered 2 exits: *Mat x2) -9/Materials (discovered 1 exit: *Mat) History --------- Turn | Location | Event 9 | -11/Scrapyard | Discovered new exit (range 16) 152 | -11/Scrapyard | Entered Materials 305 | -10/Materials | Build established: Mutant 488 | -10/Materials | Discovered new exit (range 6) 665 | -10/Materials | Discovered new exit (range 4) 687 | -10/Materials | Core integrity fell below 50% 789 | -10/Materials | Discovered new exit (range 16) 903 | -10/Materials | Discovered new exit (range 13) 975 | -10/Materials | Discovered new exit (range 16) 1111 | -10/Materials | Entered Mines 1252 | -10/Mines | Discovered new exit (range 5) 1278 | -10/Mines | Learned location of Zion (-6) 1332 | -10/Mines | Core integrity fell below 20% 1952 | -10/Mines | Discovered new exit (range 15) 2431 | -10/Mines | Entered Materials 2431 | -9/Materials | Evolved 2 slots: Propulsion x1, Utility x1 2608 | -9/Materials | Lost 5 parts (1p2n1u1w) 2654 | -9/Materials | Discovered new exit (range 15) 2785 | -9/Materials | Build established: Scavenger-Mutant 3107 | -9/Materials | Core integrity fell below 50% 3132 | -9/Materials | Core integrity fell below 20% 3188 | -9/Materials | Lost 6 parts (2p2n1u1w) 3388 | -9/Materials | Identified exit to Materials 3454 | -9/Materials | Destroyed by G-34 Mercenary with Small Laser Last Messages --------------- crushing effect. 03259_ Acquired Seismic Detector. 03285_ Acquired 10 matter. 03286_ Sneak attack on K-01 Serf. 03286_ Destroyed Wheel. 03286_ K-01 Serf system corrupted by crushing effect. 03286_ K-01 Serf knocked back. 03287_ K-01 Serf system terminally corrupted. 03297_ Acquired 10 matter. 03340_ Acquired Imp. Treads. 03350_ Acquired Spread Laser. 03355_ U-05 Engineer builds a Wall. 03388_ EXIT=IDENTIFIED: MATERIALS 03408_ U-05 Engineer builds a Wall. 03435_ O-16 Technician: "IFF HANDSHAKE FAILED. SECURING TERMINAL." 03448_ ALERT: Hostiles spotted, dispatching reinforcements to Terminal M004. 03451_ Critical hit (Burn: +37). Map ----- +----------------------------------------------------+ | | | | | | | | | | | | | | | | | | | | | ????????????????????#?#?#??#?####???????# | | ?????????????????#?################??##?? | | ??????????#????##### ! #######?##???#? | | ???????????????#####"" # #######?# | | ??????????????######"T # ######### | | ??????????????#??#?#"" + | | ??????????########## # ######### | | ??????????# ### # ### | | ??????????# #?##########+##### | | ??????????# """ ######### ## ? | | ??????????# """ ######### """## """ | | ??????????# """ ####?#### """## ""? | | ??????????# #?#?###?# """## """ | | ??????????####+########### #######? | | ??????????# # # #####?## | | ??????????# < @ # """ # ##?##### | | ??????????# g # """ ##############?# | | ############### # """ #?##?# ?# | | # # # """ ###?## """"""" # | | # """ """ """ # g ##?### """"""" # | | # """ """ """ + ###/######### """?"?"?? | | # """ """ """ # ###?##?""?"?"" # | | # # ##?### "?""""" ? | | # + u ##??##? ? ? | | ################ ##### ###### ??? ? ?? | | ???????????????#+#?#?# ##?####??#?##??? | | ??????????????? ###?# ###?#### ? ???? | | ?????????????? ##??# ##?####? ????? | | ????????????? #?### ???????? | | ????????????? #???? ????????? | | ???????????? #???? ????????????? | | ??????????? #???? ####???????????? | | ?????????? ? ?????? #??????????????? | | ?????????? ? ?????? #??????????????? | | ????????? ? ?????? #??????????????? | | ????????####?/###?????? #??????????????? | | ????????????? ??????????????????????????? | | ????????????? ??????????????????????????? | | ????????????????????????????????????????? | | ????????????????????????????????????????? | +----------------------------------------------------+ Best States ------------- Heat Dissipation 28 Energy Generation 12 Energy Capacity 265 Matter Stores 300 Matter Capacity 300 Sight Range 16 Terrain Scan Range 16 Terrain Scan Density 85 Evasion (%) 60 Recoil Reduction 1 Item Schematics ----------------- None Robot Schematics ------------------ None Fabricated ------------ Nothing Alien Tech Used ----------------- None Achievements -------------- None Challenges ------------ None Game ------ Seed MatterColdPit Manual? 0 Play Time 01:06:55 Cumulative 15.5 hours Start 2024.03.31 @ 12:22:53 End 2024.03.31 @ 18:17:29 Sessions 5 Manual Loads 0 Difficulty Rogue Special Mode None Game No. 9 Rogue 9 Adventurer 0 Explorer 0 Win Type - Total 0 Types 0/0/0/0/0/0/0/0/0 Lore% 7 Gallery% 13 Achievement% 17 Wizard Run 0 Options --------- Layout 1 ASCII 0 Keyboard 1 Movement Numpad Keybinds 0 Fullscreen 1 Font 24/Proggy Map View 50x35 Zoom Use 0% Tactical HUD 1 Map Filters NONE Filters NONE Steam 1 RUN: ad7a97e7-120e-47e6-bfd9-65af77863515